[Event "Titled Tuesday Blitz November 08 Late 2022"]
[White "Lopez Martinez, Josep Manuel"]
[Black "Arnold, Ken"]
[WhiteFideId "2212943"]
[BlackFideId "2056836"]
[WhiteElo "2471"]
[BlackElo "2313"]
[Result "1-0"]
[Round "07"]
[TimeControl "180+1"]
[Date "2022.11.09"]
[WhiteClock "0:01:03"]
[BlackClock "0:00:10"]

1. e4 {[%clk 0:03:00]}  c6 {[%clk 0:02:59]} 2. d4 {[%clk 0:03:00]}  d5 {[%clk 0:03:00]} 3. e5 {[%clk 0:03:00]}  Bf5 {[%clk 0:02:59]} 4. Nf3 {[%clk 0:02:59]}  e6 {[%clk 0:02:59]} 5. Be2 {[%clk 0:02:59]}  Nd7 {[%clk 0:02:59]} 6. O-O {[%clk 0:02:58]}  Nh6 {[%clk 0:02:57]} 7. c3 {[%clk 0:02:58]}  Bg6 {[%clk 0:02:58]} 8. a4 {[%clk 0:02:57]}  Be7 {[%clk 0:02:58]} 9. a5 {[%clk 0:02:56]}  Nf5 {[%clk 0:02:58]} 10. Nbd2 {[%clk 0:02:44]}  O-O {[%clk 0:02:55]} 11. b4 {[%clk 0:02:42]}  a6 {[%clk 0:02:53]} 12. Nb3 {[%clk 0:02:40]}  Qc7 {[%clk 0:02:52]} 13. g4 {[%clk 0:02:38]}  Nh4 {[%clk 0:02:47]} 14. Nxh4 {[%clk 0:02:37]}  Bxh4 {[%clk 0:02:46]} 15. f4 {[%clk 0:02:36]}  Be4 {[%clk 0:02:38]} 16. Bd3 {[%clk 0:02:35]}  f5 {[%clk 0:02:35]} 17. g5 {[%clk 0:02:33]}  h6 {[%clk 0:02:25]} 18. Bxe4 {[%clk 0:02:32]}  fxe4 {[%clk 0:02:24]} 19. Qh5 {[%clk 0:02:32]}  hxg5 {[%clk 0:02:23]} 20. Bd2 {[%clk 0:02:27]}  e3 {[%clk 0:01:49]} 21. Bxe3 {[%clk 0:02:25]}  gxf4 {[%clk 0:01:47]} 22. Bxf4 {[%clk 0:02:21]}  Qd8 {[%clk 0:01:42]} 23. Kh1 {[%clk 0:02:15]}  Rf5 {[%clk 0:01:41]} 24. Qg4 {[%clk 0:02:15]}  Qe7 {[%clk 0:01:38]} 25. Bg3 {[%clk 0:02:09]}  Bxg3 {[%clk 0:01:33]} 26. Rxf5 {[%clk 0:02:09]}  exf5 {[%clk 0:01:32]} 27. Qxg3 {[%clk 0:02:09]}  Rf8 {[%clk 0:01:28]} 28. Rf1 {[%clk 0:02:05]}  Qe6 {[%clk 0:01:24]} 29. Qg5 {[%clk 0:02:03]}  g6 {[%clk 0:01:17]} 30. Nc1 {[%clk 0:02:02]}  Rf7 {[%clk 0:00:53]} 31. Nd3 {[%clk 0:01:59]}  Nf8 {[%clk 0:00:52]} 32. Rg1 {[%clk 0:01:50]}  Qe7 {[%clk 0:00:50]} 33. Qg3 {[%clk 0:01:50]}  Rh7 {[%clk 0:00:48]} 34. Nf4 {[%clk 0:01:48]}  Rh6 {[%clk 0:00:48]} 35. Rg2 {[%clk 0:01:42]}  Kh7 {[%clk 0:00:46]} 36. Kg1 {[%clk 0:01:38]}  Qf7 {[%clk 0:00:41]} 37. Qg5 {[%clk 0:01:24]}  Ne6 {[%clk 0:00:38]} 38. Nxe6 {[%clk 0:01:22]}  Qxe6 {[%clk 0:00:38]} 39. Qd8 {[%clk 0:01:22]}  Qf7 {[%clk 0:00:35]} 40. Qd6 {[%clk 0:01:17]}  g5 {[%clk 0:00:33]} 41. Qd8 {[%clk 0:01:13]}  g4 {[%clk 0:00:32]} 42. Qg5 {[%clk 0:01:12]}  Rg6 {[%clk 0:00:32]} 43. Qh5+ {[%clk 0:01:08]}  Kg7 {[%clk 0:00:32]} 44. h3 {[%clk 0:01:08]}  gxh3 {[%clk 0:00:31]} 45. Rxg6+ {[%clk 0:01:06]}  Qxg6+ {[%clk 0:00:31]} 46. Qxg6+ {[%clk 0:01:07]}  Kxg6 {[%clk 0:00:31]} 47. Kh2 {[%clk 0:01:08]}  f4 {[%clk 0:00:26]} 48. Kxh3 {[%clk 0:01:07]}  Kf5 {[%clk 0:00:27]} 49. Kg2 {[%clk 0:01:07]}  Ke6 {[%clk 0:00:12]} 50. Kh3 {[%clk 0:01:05]}  Kd7 {[%clk 0:00:10]} 51. Kg4 {[%clk 0:01:05]}  b6 {[%clk 0:00:10]} 52. axb6 {[%clk 0:01:03]} 1-0


[Site "https://www.chess.com"]

[Event "Titled Tuesday Blitz November 08 Late 2022"]
[White "Makaraci, Tunahan"]
[Black "Leitao, Rafael"]
[WhiteFideId "6356559"]
[BlackFideId "2101246"]
[WhiteElo "2161"]
[BlackElo "2609"]
[Result "1/2-1/2"]
[Round "07"]
[TimeControl "180+1"]
[Date "2022.11.09"]
[WhiteClock "0:00:04"]
[BlackClock "0:00:04"]

1. e4 {[%clk 0:03:00]}  c5 {[%clk 0:02:59]} 2. c3 {[%clk 0:03:00]}  Nf6 {[%clk 0:02:58]} 3. e5 {[%clk 0:03:00]}  Nd5 {[%clk 0:02:58]} 4. d4 {[%clk 0:03:00]}  cxd4 {[%clk 0:02:59]} 5. cxd4 {[%clk 0:03:01]}  e6 {[%clk 0:02:58]} 6. Nf3 {[%clk 0:03:01]}  d6 {[%clk 0:02:58]} 7. Bc4 {[%clk 0:03:01]}  Nc6 {[%clk 0:02:59]} 8. O-O {[%clk 0:03:01]}  Be7 {[%clk 0:02:59]} 9. Qe2 {[%clk 0:03:01]}  O-O {[%clk 0:03:00]} 10. Re1 {[%clk 0:03:02]}  Bd7 {[%clk 0:02:56]} 11. Nc3 {[%clk 0:03:01]}  Nxc3 {[%clk 0:02:43]} 12. bxc3 {[%clk 0:03:02]}  Rc8 {[%clk 0:02:32]} 13. exd6 {[%clk 0:03:01]}  Bxd6 {[%clk 0:02:32]} 14. Bd3 {[%clk 0:03:00]}  g6 {[%clk 0:01:55]} 15. Bg5 {[%clk 0:02:49]}  Be7 {[%clk 0:01:52]} 16. Bxe7 {[%clk 0:02:47]}  Nxe7 {[%clk 0:01:52]} 17. c4 {[%clk 0:02:43]}  Re8 {[%clk 0:01:49]} 18. Rad1 {[%clk 0:02:41]}  Qc7 {[%clk 0:01:36]} 19. Ne5 {[%clk 0:02:34]}  Nc6 {[%clk 0:01:33]} 20. Nxc6 {[%clk 0:02:16]}  Bxc6 {[%clk 0:01:33]} 21. Qe3 {[%clk 0:02:08]}  Rcd8 {[%clk 0:01:31]} 22. h4 {[%clk 0:02:05]}  Qa5 {[%clk 0:01:21]} 23. c5 {[%clk 0:01:49]}  Qxa2 {[%clk 0:01:16]} 24. Be4 {[%clk 0:01:28]}  Bxe4 {[%clk 0:01:14]} 25. Qxe4 {[%clk 0:01:29]}  Qd5 {[%clk 0:01:13]} 26. Qf4 {[%clk 0:01:23]}  e5 {[%clk 0:01:03]} 27. dxe5 {[%clk 0:01:15]}  Qxd1 {[%clk 0:01:03]} 28. Rxd1 {[%clk 0:01:16]}  Rxd1+ {[%clk 0:01:03]} 29. Kh2 {[%clk 0:01:17]}  Rd5 {[%clk 0:00:59]} 30. Qa4 {[%clk 0:01:02]}  Rdxe5 {[%clk 0:00:44]} 31. Qxa7 {[%clk 0:01:02]}  R8e7 {[%clk 0:00:43]} 32. g3 {[%clk 0:01:01]}  h5 {[%clk 0:00:43]} 33. Qb8+ {[%clk 0:01:00]}  Kg7 {[%clk 0:00:43]} 34. Qd6 {[%clk 0:01:00]}  R7e6 {[%clk 0:00:42]} 35. Qd4 {[%clk 0:00:59]}  Kg8 {[%clk 0:00:39]} 36. Qd8+ {[%clk 0:00:59]}  Kg7 {[%clk 0:00:38]} 37. Qd4 {[%clk 0:00:58]}  Kh7 {[%clk 0:00:36]} 38. Qd7 {[%clk 0:00:57]}  Rf6 {[%clk 0:00:34]} 39. Qd4 {[%clk 0:00:51]}  Ref5 {[%clk 0:00:31]} 40. f4 {[%clk 0:00:50]}  Rc6 {[%clk 0:00:30]} 41. Qd7 {[%clk 0:00:46]}  Rcxc5 {[%clk 0:00:25]} 42. Qxb7 {[%clk 0:00:45]}  Rc2+ {[%clk 0:00:24]} 43. Kh3 {[%clk 0:00:44]}  Kg7 {[%clk 0:00:24]} 44. Qe4 {[%clk 0:00:43]}  Rc6 {[%clk 0:00:21]} 45. Qxc6 {[%clk 0:00:42]}  Kh7 {[%clk 0:00:19]} 46. Qd7 {[%clk 0:00:41]}  Kg7 {[%clk 0:00:18]} 47. Kg2 {[%clk 0:00:41]}  Kh7 {[%clk 0:00:17]} 48. Kf3 {[%clk 0:00:41]}  Kg7 {[%clk 0:00:17]} 49. Ke3 {[%clk 0:00:41]}  Ra5 {[%clk 0:00:17]} 50. Qd4+ {[%clk 0:00:40]}  Kh7 {[%clk 0:00:17]} 51. Qc3 {[%clk 0:00:33]}  Rf5 {[%clk 0:00:16]} 52. Ke4 {[%clk 0:00:34]}  Rb5 {[%clk 0:00:11]} 53. Qc4 {[%clk 0:00:31]}  Rf5 {[%clk 0:00:08]} 54. Qc7 {[%clk 0:00:24]}  Kg7 {[%clk 0:00:07]} 55. Qd7 {[%clk 0:00:23]}  Ra5 {[%clk 0:00:06]} 56. Qd4+ {[%clk 0:00:22]}  Kh7 {[%clk 0:00:06]} 57. Qf6 {[%clk 0:00:22]}  Ra4+ {[%clk 0:00:05]} 58. Ke3 {[%clk 0:00:21]}  Kg8 {[%clk 0:00:05]} 59. Qd8+ {[%clk 0:00:19]}  Kg7 {[%clk 0:00:05]} 60. Qd7 {[%clk 0:00:19]}  Ra3+ {[%clk 0:00:04]} 61. Kf2 {[%clk 0:00:20]}  Ra2+ {[%clk 0:00:04]} 62. Kf3 {[%clk 0:00:20]}  Ra3+ {[%clk 0:00:05]} 63. Kg2 {[%clk 0:00:21]}  Ra2+ {[%clk 0:00:05]} 64. Kh3 {[%clk 0:00:21]}  Ra5 {[%clk 0:00:06]} 65. Qd4+ {[%clk 0:00:21]}  Kh7 {[%clk 0:00:05]} 66. g4 {[%clk 0:00:20]}  hxg4+ {[%clk 0:00:05]} 67. Kxg4 {[%clk 0:00:20]}  Rf5 {[%clk 0:00:05]} 68. Qe4 {[%clk 0:00:20]}  Rh5 {[%clk 0:00:04]} 69. Qe7 {[%clk 0:00:17]}  Kg7 {[%clk 0:00:04]} 70. Qd6 {[%clk 0:00:17]}  Rf5 {[%clk 0:00:04]} 71. Qd4+ {[%clk 0:00:17]}  Kh7 {[%clk 0:00:03]} 72. Qc4 {[%clk 0:00:15]}  Kg7 {[%clk 0:00:03]} 73. Qc3+ {[%clk 0:00:15]}  Kh7 {[%clk 0:00:03]} 74. Qd3 {[%clk 0:00:13]}  Rh5 {[%clk 0:00:03]} 75. Qd8 {[%clk 0:00:09]}  Kg7 {[%clk 0:00:03]} 76. Qe7 {[%clk 0:00:10]}  Kg8 {[%clk 0:00:03]} 77. Qf6 {[%clk 0:00:09]}  Kf8 {[%clk 0:00:01]} 78. f5 {[%clk 0:00:06]}  Rxf5 {[%clk 0:00:01]} 79. Qd8+ {[%clk 0:00:07]}  Kg7 {[%clk 0:00:02]} 80. Qd4+ {[%clk 0:00:06]}  Kg8 {[%clk 0:00:02]} 81. Qd7 {[%clk 0:00:06]}  Kg7 {[%clk 0:00:02]} 82. Qe7 {[%clk 0:00:06]}  Kg8 {[%clk 0:00:03]} 83. Qe8+ {[%clk 0:00:06]}  Kg7 {[%clk 0:00:03]} 84. Qe7 {[%clk 0:00:07]}  Kg8 {[%clk 0:00:04]} 85. Qe8+ {[%clk 0:00:06]}  Kg7 {[%clk 0:00:04]} 86. Qe7 {[%clk 0:00:04]} 1/2-1/2


[Site "https://www.chess.com"]

[Event "Titled Tuesday Blitz November 08 Late 2022"]
[White "Maksimovic, Bojan"]
[Black "Jobava, Baadur"]
[WhiteFideId "14408120"]
[BlackFideId "13601520"]
[WhiteElo "2447"]
[BlackElo "2582"]
[Result "0-1"]
[Round "07"]
[TimeControl "180+1"]
[Date "2022.11.08"]
[WhiteClock "0:00:02"]
[BlackClock "0:00:12"]

1. e4 {[%clk 0:03:00]}  d6 {[%clk 0:02:51]} 2. d4 {[%clk 0:02:55]}  Nf6 {[%clk 0:02:49]} 3. Nc3 {[%clk 0:02:55]}  e5 {[%clk 0:02:45]} 4. Nf3 {[%clk 0:02:55]}  Nbd7 {[%clk 0:02:45]} 5. Bc4 {[%clk 0:02:54]}  Be7 {[%clk 0:02:45]} 6. O-O {[%clk 0:02:54]}  O-O {[%clk 0:02:46]} 7. Re1 {[%clk 0:02:55]}  h6 {[%clk 0:02:46]} 8. h3 {[%clk 0:02:50]}  Re8 {[%clk 0:02:41]} 9. a4 {[%clk 0:02:48]}  a5 {[%clk 0:02:41]} 10. Be3 {[%clk 0:02:39]}  Bf8 {[%clk 0:02:38]} 11. Bf1 {[%clk 0:02:33]}  c6 {[%clk 0:02:35]} 12. Qd3 {[%clk 0:02:20]}  Qc7 {[%clk 0:02:31]} 13. Rad1 {[%clk 0:02:18]}  exd4 {[%clk 0:02:21]} 14. Bxd4 {[%clk 0:02:18]}  Ne5 {[%clk 0:02:22]} 15. Qe3 {[%clk 0:02:15]}  Be6 {[%clk 0:02:18]} 16. b3 {[%clk 0:02:07]}  Nfd7 {[%clk 0:02:04]} 17. Nh4 {[%clk 0:01:58]}  g5 {[%clk 0:01:57]} 18. Nf3 {[%clk 0:01:19]}  Bg7 {[%clk 0:01:53]} 19. Nh2 {[%clk 0:01:18]}  f5 {[%clk 0:01:46]} 20. f4 {[%clk 0:01:02]}  gxf4 {[%clk 0:01:40]} 21. Qxf4 {[%clk 0:01:03]}  Rf8 {[%clk 0:01:35]} 22. exf5 {[%clk 0:00:50]}  Bxf5 {[%clk 0:01:36]} 23. Qd2 {[%clk 0:00:40]}  d5 {[%clk 0:01:30]} 24. Ne2 {[%clk 0:00:40]}  Rf7 {[%clk 0:01:23]} 25. Ng3 {[%clk 0:00:39]}  Raf8 {[%clk 0:01:18]} 26. Nxf5 {[%clk 0:00:31]}  Rxf5 {[%clk 0:01:18]} 27. Kh1 {[%clk 0:00:31]}  Nf6 {[%clk 0:01:09]} 28. Bd3 {[%clk 0:00:29]}  Nxd3 {[%clk 0:01:08]} 29. cxd3 {[%clk 0:00:29]}  Nh5 {[%clk 0:01:07]} 30. Bxg7 {[%clk 0:00:28]}  Qxg7 {[%clk 0:01:06]} 31. Ng4 {[%clk 0:00:25]}  Nf4 {[%clk 0:01:05]} 32. Rf1 {[%clk 0:00:21]}  d4 {[%clk 0:01:04]} 33. Rf3 {[%clk 0:00:10]}  h5 {[%clk 0:01:04]} 34. Rdf1 {[%clk 0:00:11]}  Qg5 {[%clk 0:00:37]} 35. Ne5 {[%clk 0:00:09]}  Kg7 {[%clk 0:00:25]} 36. Nd7 {[%clk 0:00:08]}  R8f7 {[%clk 0:00:25]} 37. Ne5 {[%clk 0:00:07]}  R7f6 {[%clk 0:00:24]} 38. Nd7 {[%clk 0:00:07]}  Rf7 {[%clk 0:00:20]} 39. Ne5 {[%clk 0:00:07]}  Rxe5 {[%clk 0:00:20]} 40. Rxf4 {[%clk 0:00:07]}  Rxf4 {[%clk 0:00:21]} 41. Rxf4 {[%clk 0:00:02]}  Re3 {[%clk 0:00:17]} 42. Qf2 {[%clk 0:00:01]}  Qe5 {[%clk 0:00:14]} 43. Rf7+ {[%clk 0:00:01]}  Kg6 {[%clk 0:00:15]} 44. Rf4 {[%clk 0:00:01]}  Rxd3 {[%clk 0:00:13]} 45. Qf1 {[%clk 0:00:01]}  Re3 {[%clk 0:00:13]} 46. Qf2 {[%clk 0:00:01]}  d3 {[%clk 0:00:13]} 47. h4 {[%clk 0:00:01]}  d2 {[%clk 0:00:11]} 48. Rf6+ {[%clk 0:00:01]}  Qxf6 {[%clk 0:00:11]} 49. Qxe3 {[%clk 0:00:02]}  d1=Q+ {[%clk 0:00:12]} 0-1


[Site "https://www.chess.com"]

[Event "Titled Tuesday Blitz November 08 Late 2022"]
[White "Mendez Fortes, Eduardo Jesus"]
[Black "Ali Abdullahi, Farah"]
[WhiteFideId "3502376"]
[BlackFideId "16100212"]
[WhiteElo "2307"]
[BlackElo "2270"]
[Result "1-0"]
[Round "07"]
[TimeControl "180+1"]
[Date "2022.11.09"]
[WhiteClock "0:00:37"]
[BlackClock "0:00:02"]

1. e4 {[%clk 0:03:00]}  e6 {[%clk 0:03:00]} 2. d4 {[%clk 0:03:00]}  d5 {[%clk 0:03:00]} 3. Nd2 {[%clk 0:03:01]}  Nf6 {[%clk 0:02:59]} 4. e5 {[%clk 0:03:01]}  Nfd7 {[%clk 0:02:59]} 5. Bd3 {[%clk 0:03:01]}  c5 {[%clk 0:02:57]} 6. c3 {[%clk 0:03:02]}  Nc6 {[%clk 0:02:57]} 7. Ne2 {[%clk 0:03:02]}  cxd4 {[%clk 0:02:52]} 8. cxd4 {[%clk 0:03:03]}  f6 {[%clk 0:02:51]} 9. exf6 {[%clk 0:03:02]}  Nxf6 {[%clk 0:02:49]} 10. Nf3 {[%clk 0:03:03]}  Bd6 {[%clk 0:02:50]} 11. O-O {[%clk 0:02:59]}  Qc7 {[%clk 0:02:49]} 12. Bg5 {[%clk 0:02:56]}  O-O {[%clk 0:02:49]} 13. Bh4 {[%clk 0:02:56]}  Bd7 {[%clk 0:02:47]} 14. Bg3 {[%clk 0:02:54]}  Bxg3 {[%clk 0:02:45]} 15. Nxg3 {[%clk 0:02:55]}  Be8 {[%clk 0:02:39]} 16. Re1 {[%clk 0:02:54]}  Bf7 {[%clk 0:02:31]} 17. Qd2 {[%clk 0:02:54]}  h6 {[%clk 0:02:30]} 18. Rad1 {[%clk 0:02:52]}  Qb6 {[%clk 0:02:30]} 19. a3 {[%clk 0:02:50]}  Rfe8 {[%clk 0:02:28]} 20. Bb1 {[%clk 0:02:49]}  Na5 {[%clk 0:02:23]} 21. Ne5 {[%clk 0:02:42]}  Nc4 {[%clk 0:02:14]} 22. Nxc4 {[%clk 0:02:38]}  dxc4 {[%clk 0:02:02]} 23. Qc2 {[%clk 0:02:38]}  Rac8 {[%clk 0:01:51]} 24. Ne4 {[%clk 0:02:34]}  Nd5 {[%clk 0:01:30]} 25. Nc5 {[%clk 0:02:30]}  Nf6 {[%clk 0:01:27]} 26. Re5 {[%clk 0:02:23]}  Red8 {[%clk 0:01:24]} 27. Ba2 {[%clk 0:01:52]}  Qc7 {[%clk 0:01:09]} 28. Ree1 {[%clk 0:01:43]}  b5 {[%clk 0:01:06]} 29. Bb1 {[%clk 0:01:39]}  Qf4 {[%clk 0:01:02]} 30. g3 {[%clk 0:01:35]}  Qg4 {[%clk 0:01:00]} 31. Qc3 {[%clk 0:01:31]}  Qh3 {[%clk 0:00:58]} 32. f3 {[%clk 0:01:21]}  h5 {[%clk 0:00:45]} 33. Qe3 {[%clk 0:01:15]}  h4 {[%clk 0:00:43]} 34. g4 {[%clk 0:01:14]}  Nd5 {[%clk 0:00:40]} 35. Qe4 {[%clk 0:00:54]}  Nf6 {[%clk 0:00:38]} 36. Qe2 {[%clk 0:00:54]}  Nd5 {[%clk 0:00:17]} 37. Ne4 {[%clk 0:00:53]}  Nf4 {[%clk 0:00:14]} 38. Qf2 {[%clk 0:00:53]}  Bg6 {[%clk 0:00:12]} 39. Ng5 {[%clk 0:00:52]}  Qg2+ {[%clk 0:00:08]} 40. Qxg2 {[%clk 0:00:52]}  Nxg2 {[%clk 0:00:09]} 41. Kxg2 {[%clk 0:00:48]}  Bxb1 {[%clk 0:00:09]} 42. Rxb1 {[%clk 0:00:47]}  Rxd4 {[%clk 0:00:10]} 43. Re2 {[%clk 0:00:46]}  e5 {[%clk 0:00:09]} 44. Rbe1 {[%clk 0:00:44]}  c3 {[%clk 0:00:09]} 45. bxc3 {[%clk 0:00:44]}  Rxc3 {[%clk 0:00:10]} 46. Rxe5 {[%clk 0:00:43]}  Rd2+ {[%clk 0:00:09]} 47. Kh3 {[%clk 0:00:41]}  g6 {[%clk 0:00:08]} 48. Kxh4 {[%clk 0:00:39]}  Rxh2+ {[%clk 0:00:06]} 49. Kg3 {[%clk 0:00:40]}  Rcc2 {[%clk 0:00:04]} 50. Re8+ {[%clk 0:00:37]}  Kg7 {[%clk 0:00:03]} 51. R1e7+ {[%clk 0:00:36]}  Kf6 {[%clk 0:00:03]} 52. Rf7+ {[%clk 0:00:37]}  Kxg5 {[%clk 0:00:02]} 53. f4+ {[%clk 0:00:37]}  Kh6 {[%clk 0:00:02]} 54. Rh8# {[%clk 0:00:37]} 1-0


[Site "https://www.chess.com"]

[Event "Titled Tuesday Blitz November 08 Late 2022"]
[White "Mendonca, Mateus Nakajo"]
[Black "Veiga, Jose Francisco R P Neves"]
[WhiteFideId "2110954"]
[BlackFideId "1930087"]
[WhiteElo "2310"]
[BlackElo "2320"]
[Result "1-0"]
[Round "07"]
[TimeControl "180+1"]
[Date "2022.11.09"]
[WhiteClock "0:00:10"]
[BlackClock "0:00:03"]

1. Nf3 {[%clk 0:03:00]}  Nc6 {[%clk 0:02:59]} 2. d4 {[%clk 0:02:59]}  d6 {[%clk 0:02:59]} 3. g3 {[%clk 0:02:57]}  Bg4 {[%clk 0:02:58]} 4. Bg2 {[%clk 0:02:57]}  e5 {[%clk 0:02:58]} 5. d5 {[%clk 0:02:37]}  Nce7 {[%clk 0:02:57]} 6. O-O {[%clk 0:02:37]}  f5 {[%clk 0:02:57]} 7. c4 {[%clk 0:02:34]}  Nf6 {[%clk 0:02:51]} 8. Ng5 {[%clk 0:02:29]}  Qd7 {[%clk 0:02:43]} 9. h3 {[%clk 0:02:24]}  Bh5 {[%clk 0:02:43]} 10. Nc3 {[%clk 0:02:20]}  h6 {[%clk 0:02:42]} 11. Ne6 {[%clk 0:02:19]}  Bf7 {[%clk 0:02:42]} 12. e4 {[%clk 0:02:07]}  fxe4 {[%clk 0:02:41]} 13. Nxe4 {[%clk 0:01:47]}  Nxe4 {[%clk 0:02:15]} 14. Bxe4 {[%clk 0:01:48]}  Bxe6 {[%clk 0:02:13]} 15. dxe6 {[%clk 0:01:49]}  Qxe6 {[%clk 0:02:13]} 16. Bxb7 {[%clk 0:01:48]}  Rd8 {[%clk 0:02:06]} 17. Qa4+ {[%clk 0:01:32]}  Kf7 {[%clk 0:02:04]} 18. Qxa7 {[%clk 0:01:31]}  g6 {[%clk 0:02:00]} 19. Bg2 {[%clk 0:01:26]}  Bg7 {[%clk 0:01:58]} 20. Be3 {[%clk 0:01:25]}  e4 {[%clk 0:01:50]} 21. Qxc7 {[%clk 0:01:10]}  Rc8 {[%clk 0:01:47]} 22. Qb7 {[%clk 0:01:08]}  Rb8 {[%clk 0:01:47]} 23. Qxe4 {[%clk 0:01:06]}  Rxb2 {[%clk 0:01:45]} 24. Qxe6+ {[%clk 0:01:03]}  Kxe6 {[%clk 0:01:45]} 25. Rfe1 {[%clk 0:01:01]}  Kd7 {[%clk 0:01:42]} 26. Rad1 {[%clk 0:00:59]}  Rxa2 {[%clk 0:01:38]} 27. c5 {[%clk 0:00:54]}  Nf5 {[%clk 0:01:15]} 28. cxd6 {[%clk 0:00:46]}  Bc3 {[%clk 0:01:15]} 29. Rf1 {[%clk 0:00:36]}  Bb4 {[%clk 0:00:40]} 30. Bf4 {[%clk 0:00:32]}  Re8 {[%clk 0:00:35]} 31. Bd5 {[%clk 0:00:30]}  Ra6 {[%clk 0:00:21]} 32. Bf7 {[%clk 0:00:28]}  Rf8 {[%clk 0:00:19]} 33. Bxg6 {[%clk 0:00:27]}  Nxd6 {[%clk 0:00:19]} 34. Rd4 {[%clk 0:00:23]}  Bc5 {[%clk 0:00:19]} 35. Rd5 {[%clk 0:00:23]}  Kc6 {[%clk 0:00:20]} 36. Rfd1 {[%clk 0:00:21]}  Rf6 {[%clk 0:00:14]} 37. Bh5 {[%clk 0:00:19]}  Ra2 {[%clk 0:00:13]} 38. R5d2 {[%clk 0:00:15]}  Rxd2 {[%clk 0:00:13]} 39. Rxd2 {[%clk 0:00:16]}  Ne4 {[%clk 0:00:13]} 40. Bf3 {[%clk 0:00:15]}  Re6 {[%clk 0:00:10]} 41. Re2 {[%clk 0:00:15]}  Kd5 {[%clk 0:00:10]} 42. Kg2 {[%clk 0:00:14]}  h5 {[%clk 0:00:08]} 43. h4 {[%clk 0:00:13]}  Bd4 {[%clk 0:00:07]} 44. Bxh5 {[%clk 0:00:11]}  Nxf2 {[%clk 0:00:05]} 45. Bf7 {[%clk 0:00:10]}  Ng4 {[%clk 0:00:03]} 46. Bxe6+ {[%clk 0:00:10]} 1-0


[Site "https://www.chess.com"]

[Event "Titled Tuesday Blitz November 08 Late 2022"]
[White "Mr_Penings"]
[Black "Hajiyev, Kanan"]
[BlackFideId "13404148"]
[WhiteElo "2679"]
[BlackElo "2118"]
[Result "0-1"]
[Round "07"]
[TimeControl "180+1"]
[Date "2022.11.09"]
[WhiteClock "0:00:25"]
[BlackClock "0:00:16"]

1. c4 {[%clk 0:03:00]}  c6 {[%clk 0:02:59]} 2. Nf3 {[%clk 0:03:00]}  d5 {[%clk 0:03:00]} 3. e3 {[%clk 0:03:00]}  Nf6 {[%clk 0:03:00]} 4. Nc3 {[%clk 0:03:00]}  g6 {[%clk 0:03:01]} 5. d4 {[%clk 0:03:00]}  Bg7 {[%clk 0:03:02]} 6. Be2 {[%clk 0:03:01]}  O-O {[%clk 0:03:02]} 7. O-O {[%clk 0:03:01]}  Bf5 {[%clk 0:03:02]} 8. Qb3 {[%clk 0:03:01]}  Qb6 {[%clk 0:03:02]} 9. Bd2 {[%clk 0:02:56]}  Qxb3 {[%clk 0:03:01]} 10. axb3 {[%clk 0:02:56]}  Nbd7 {[%clk 0:02:58]} 11. b4 {[%clk 0:02:42]}  dxc4 {[%clk 0:02:56]} 12. Bxc4 {[%clk 0:02:43]}  Nb6 {[%clk 0:02:51]} 13. Be2 {[%clk 0:02:29]}  a6 {[%clk 0:02:48]} 14. Ra5 {[%clk 0:02:12]}  Rac8 {[%clk 0:02:40]} 15. Rc1 {[%clk 0:01:43]}  Rfd8 {[%clk 0:02:38]} 16. b3 {[%clk 0:01:33]}  h5 {[%clk 0:02:26]} 17. h3 {[%clk 0:01:32]}  Nfd5 {[%clk 0:02:23]} 18. Na4 {[%clk 0:01:25]}  Nxa4 {[%clk 0:02:13]} 19. bxa4 {[%clk 0:01:19]}  Nc7 {[%clk 0:01:56]} 20. Rac5 {[%clk 0:01:16]}  Bf8 {[%clk 0:01:47]} 21. R5c3 {[%clk 0:01:13]}  Nd5 {[%clk 0:01:46]} 22. Rb3 {[%clk 0:01:12]}  f6 {[%clk 0:01:35]} 23. Nh4 {[%clk 0:01:11]}  Be6 {[%clk 0:01:32]} 24. Rbb1 {[%clk 0:01:02]}  g5 {[%clk 0:01:19]} 25. Nf3 {[%clk 0:01:02]}  Bf5 {[%clk 0:01:13]} 26. Rb2 {[%clk 0:01:00]}  Be4 {[%clk 0:01:13]} 27. Ne1 {[%clk 0:01:00]}  h4 {[%clk 0:01:08]} 28. Nd3 {[%clk 0:01:00]}  Bxd3 {[%clk 0:01:07]} 29. Bxd3 {[%clk 0:01:00]}  e5 {[%clk 0:01:07]} 30. Bf5 {[%clk 0:01:00]}  Ra8 {[%clk 0:01:03]} 31. dxe5 {[%clk 0:00:56]}  fxe5 {[%clk 0:01:01]} 32. g3 {[%clk 0:00:52]}  hxg3 {[%clk 0:00:58]} 33. fxg3 {[%clk 0:00:53]}  Ne7 {[%clk 0:00:49]} 34. Be6+ {[%clk 0:00:53]}  Kg7 {[%clk 0:00:49]} 35. e4 {[%clk 0:00:54]}  Kf6 {[%clk 0:00:39]} 36. Bg4 {[%clk 0:00:53]}  Bh6 {[%clk 0:00:35]} 37. Rf1+ {[%clk 0:00:53]}  Kg7 {[%clk 0:00:34]} 38. Bc3 {[%clk 0:00:53]}  Ng6 {[%clk 0:00:32]} 39. Rbf2 {[%clk 0:00:47]}  Rd3 {[%clk 0:00:26]} 40. Rf7+ {[%clk 0:00:45]}  Kg8 {[%clk 0:00:26]} 41. R7f3 {[%clk 0:00:38]}  Rxf3 {[%clk 0:00:23]} 42. Rxf3 {[%clk 0:00:39]}  Kg7 {[%clk 0:00:23]} 43. Rd3 {[%clk 0:00:40]}  Nf8 {[%clk 0:00:21]} 44. Bxe5+ {[%clk 0:00:39]}  Kf7 {[%clk 0:00:21]} 45. Rd6 {[%clk 0:00:37]}  Bg7 {[%clk 0:00:20]} 46. Bh5+ {[%clk 0:00:38]}  Ke7 {[%clk 0:00:19]} 47. Rxc6 {[%clk 0:00:27]}  Bxe5 {[%clk 0:00:16]} 48. Rb6 {[%clk 0:00:25]}  Bd4+ {[%clk 0:00:16]} 0-1


[Site "https://www.chess.com"]